bitfinex-derivatives/quotes_SOLF0:USTF0_20230902
["timestamp","ask_amount","ask_price","bid_price","bid_amount"]
[1693678755439,15.67,19.15,19.137,15.65]
[1693678756128,15.67,19.147,19.137,15.65]
[1693678756330,15.67,19.148,19.137,15.65]
[1693678756928,15.67,19.148,19.135,15.65]
[1693678756929,26.11238,19.148,19.135,15.65]
[1693678757130,15.67,19.156,19.138,94.22]
[1693678757336,15.67,19.154,19.138,94.22]
[1693678757833,26.10284,19.155,19.152,15.65]
[1693678758035,94.22,19.163,19.144,94.22]
[1693678758734,120.31194,19.163,19.144,94.22]
[1693678759047,94.22,19.16,19.142,36.1792]
[1693678759532,26.09739,19.159,19.142,36.1792]
[1693678760331,94.22,19.166,19.145,94.22]
[1693678760536,0.45454546,19.165,19.145,94.22]
[1693678760733,0.45454546,19.165,19.15,94.22]
[1693678766345,0.45454546,19.165,19.154,15.65]
[1693678766546,0.45454546,19.17,19.154,15.65]
[1693678766946,0.45454546,19.17,19.156,15.65]
[1693678767738,94.22,19.168,19.156,15.65]
[1693678767945,0.45454546,19.167,19.156,15.65]
[1693678771349,0.45454546,19.166,19.156,15.65]
[1693678771551,0.45454546,19.168,19.156,15.65]
[1693678771746,0.45454546,19.167,19.156,15.65]
[1693678771946,0.45454546,19.168,19.156,15.65]
[1693678772147,0.45454546,19.167,19.156,15.65]
[1693678772343,0.45454546,19.168,19.156,15.65]
[1693678773045,26.53968546,19.168,19.156,15.65]
[1693678773245,0.45454546,19.167,19.156,15.65]
[1693678774248,0.45454546,19.167,19.155,21.014]
[1693678774451,594.22,19.162,19.155,21.014]
[1693678774654,594.22,19.162,19.144,94.22]
[1693678774655,0.45454546,19.161,19.144,94.22]
[1693678775349,94.22,19.158,19.141,15.65]
[1693678775549,15.67,19.156,19.141,15.65]
[1693678777851,0.45454546,19.157,19.141,15.65]
[1693678778451,0.45454546,19.157,19.143,94.22]
[1693678778750,0.45454546,19.16,19.143,94.22]
[1693678779054,0.45454546,19.159,19.143,94.22]
[1693678779255,0.45454546,19.158,19.143,94.22]
[1693678779450,0.45454546,19.16,19.143,94.22]
[1693678779754,0.45454546,19.159,19.143,94.22]
[1693678780055,0.45454546,19.158,19.144,20.9898]
[1693678780245,0.45454546,19.16,19.144,20.9898]
[1693678787864,94.22,19.161,19.144,20.9898]
[1693678788563,94.22,19.161,19.155,0.06309794]
[1693678792066,94.22,19.164,19.155,0.06309794]
[1693678792263,228.32,19.162,19.155,0.06309794]
[1693678797760,228.32,19.162,19.156,15.64]
[1693678797966,228.32,19.164,19.156,15.64]
[1693678800868,228.32,19.164,19.155,0.06309794]
[1693678801071,228.32,19.161,19.155,0.06309794]
[1693678801368,15.66,19.156,19.144,249.3098]
[1693678801568,16.11454546,19.156,19.144,249.3098]
[1693678801967,15.66,19.154,19.144,20.9898]
[1693678802159,228.32,19.155,19.144,20.9898]
[1693678802559,228.32,19.155,19.141,243.96]
[1693678802765,228.32,19.155,19.142,20.679]
[1693678803269,228.32,19.155,19.141,243.96]
[1693678803470,228.32,19.155,19.142,20.6176]
[1693678804367,228.32,19.16,19.147,228.32]
[1693678807372,228.32,19.166,19.154,228.32]
[1693678809174,228.77454546,19.166,19.154,228.32]
[1693678809472,228.32,19.166,19.154,228.32]
[1693678810570,228.32,19.169,19.156,228.32]
[1693678810770,15.66,19.171,19.16,15.64]
[1693678813265,228.32,19.172,19.16,15.64]
[1693678813866,228.32,19.175,19.163,15.63]
[1693678820983,15.65,19.177,19.166,15.63]
[1693678821174,16.10454546,19.177,19.166,15.63]
[1693678821478,16.10454546,19.177,19.166,37.0656]
[1693678823582,0.45454546,19.177,19.166,37.0656]
[1693678824776,0.45454546,19.177,19.17,15.63]
[1693678824980,228.32,19.181,19.168,228.32]
[1693678824981,228.32,19.181,19.169,15.63]
[1693678826279,228.32,19.184,19.171,228.32]
[1693678829485,228.32,19.186,19.174,228.32]
[1693678832087,228.32,19.184,19.171,228.32]
[1693678833785,15.65,19.177,19.166,37.6409]
[1693678834086,15.65,19.177,19.165,228.32]
[1693678834286,15.65,19.174,19.163,15.63]
[1693678837294,228.32,19.17,19.158,37.2722]
[1693678837687,22.1002,19.169,19.158,15.63]
[1693678841692,228.32,19.173,19.16,228.32]
[1693678843697,228.32,19.173,19.156,45.49359845]
[1693678843698,250.69644546,19.176,19.163,228.32]
[1693678845798,22.37644546,19.176,19.166,15.63]
[1693678847999,15.65,19.174,19.162,228.32]
[1693678848303,228.32,19.173,19.16,228.32]
[1693678850294,254.39833,19.173,19.16,228.32]
[1693678850705,26.07833,19.173,19.163,228.32]
[1693678852503,228.32,19.176,19.163,228.32]
[1693678852899,15.65,19.177,19.166,228.32]
[1693678853100,0.45454546,19.176,19.166,228.32]
[1693678854305,228.32,19.173,19.162,15.63]
[1693678856506,15.65,19.174,19.163,228.32]
[1693678856902,228.32,19.176,19.163,228.32]
[1693678860206,0.45454546,19.176,19.166,228.32]
[1693678860399,15.65,19.177,19.166,228.32]
[1693678860606,0.45454546,19.176,19.166,228.32]
[1693678860905,0.45454546,19.178,19.166,228.32]
[1693678862510,15.65,19.177,19.166,228.32]
[1693678862707,0.45454546,19.176,19.166,228.32]
[1693678862911,41.72289,19.177,19.166,228.32]
[1693678863103,0.45454546,19.176,19.166,228.32]
[1693678864308,228.77454546,19.176,19.163,228.32]
[1693678867619,15.65,19.174,19.163,228.32]
[1693678871907,243.97,19.174,19.163,228.32]
[1693678872212,141.59,19.174,19.162,141.57]
[1693678873914,125.94,19.174,19.162,141.57]
[1693678874821,125.94,19.177,19.166,15.63]
[1693678875121,0.45454546,19.176,19.166,15.63]
[1693678878419,0.45454546,19.176,19.168,15.63]
[1693678878627,15.65,19.177,19.168,15.63]
[1693678878826,0.45454546,19.176,19.168,15.63]
[1693678879024,15.65,19.177,19.168,15.63]
[1693678879327,0.45454546,19.176,19.168,15.63]
[1693678879626,15.65,19.177,19.168,15.63]
[1693678879827,0.45454546,19.176,19.168,15.63]
[1693678880128,15.65,19.177,19.168,15.63]
[1693678880327,125.94,19.179,19.168,15.63]
[1693678880328,0.45454546,19.176,19.168,15.63]
[1693678880526,15.65,19.177,19.168,15.63]
[1693678880728,0.45454546,19.176,19.168,15.63]
[1693678881027,15.65,19.177,19.168,15.63]
[1693678881228,0.45454546,19.176,19.168,15.63]
[1693678881429,15.65,19.177,19.168,15.63]
[1693678881629,0.45454546,19.176,19.168,15.63]
[1693678881831,15.65,19.177,19.168,15.63]
[1693678882128,0.45454546,19.176,19.168,15.63]
[1693678882327,15.65,19.177,19.168,15.63]
[1693678882627,0.45454546,19.176,19.168,15.63]
[1693678882829,15.65,19.177,19.168,15.63]
[1693678883026,0.45454546,19.176,19.168,15.63]
[1693678883225,15.65,19.177,19.168,15.63]
[1693678893132,15.65,19.177,19.167,125.94]
[1693678893434,125.94,19.176,19.164,125.94]
[1693678894441,125.94,19.174,19.162,141.57]
[1693678896440,15.65,19.177,19.166,125.94]
[1693678896636,16.10454546,19.177,19.166,125.94]
[1693678896833,0.45454546,19.177,19.166,125.94]
[1693678897032,0.45454546,19.177,19.168,125.94]
[1693678897241,0.45454546,19.179,19.168,125.94]
[1693678897441,0.45454546,19.179,19.169,21.0337]
[1693678906850,0.45454546,19.179,19.169,62.04361131]
[1693678907448,113.27,19.179,19.172,113.27]
[1693678908043,113.72454546,19.179,19.172,113.27]
[1693678908351,500.0,19.183,19.173,113.27]
[1693678908352,113.27,19.18,19.173,113.27]
[1693678908545,0.45454546,19.179,19.173,113.27]
[1693678909550,113.27,19.182,19.176,15.62]
[1693678912055,113.27,19.183,19.176,113.27]
[1693678916752,113.27,19.185,19.178,113.27]
[1693678918655,113.27,19.185,19.179,15.62]
[1693678920365,62.70831437,19.19,19.181,113.27]
[1693678920366,15.64,19.187,19.181,113.27]
[1693678920755,113.27,19.188,19.182,15.62]
[1693678920959,113.27,19.19,19.184,113.27]
[1693678924864,139.32523,19.19,19.184,113.27]
[1693678925662,113.27,19.186,19.178,113.27]
[1693678927357,15.64,19.187,19.176,141.4]
[1693678927759,41.69931,19.187,19.176,141.4]
[1693678931078,41.69931,19.187,19.176,125.78]
[1693678931973,125.78,19.186,19.176,125.78]
[1693678933071,125.78,19.184,19.172,125.78]
[1693678933470,26.06474,19.183,19.172,125.78]
[1693678936171,26.06474,19.183,19.175,125.78]
[1693678948582,26.06474,19.183,19.173,20.7193]
[1693678950583,15.65,19.181,19.171,125.78]
[1693678950885,125.78,19.179,19.167,125.78]
[1693678951085,126.23454546,19.179,19.167,125.78]
[1693678951388,125.78,19.179,19.167,125.78]
[1693678951789,126.23454546,19.179,19.167,125.78]
[1693678951988,125.78,19.179,19.167,125.78]
[1693678952384,113.31,19.177,19.17,113.31]
[1693678952582,139.38289,19.177,19.17,113.31]
[1693678954490,15.65,19.174,19.168,113.31]
[1693678958097,113.31,19.171,19.165,21.7155]
[1693678958406,113.31,19.171,19.164,113.31]
[1693678960498,20.7103,19.176,19.158,15.62]
[1693678960499,113.31,19.168,19.16,113.31]
[1693678961497,113.31,19.17,19.163,113.31]
[1693678962101,113.31,19.169,19.161,113.31]
[1693678962802,113.31,19.169,19.162,15.62]
[1693678963004,113.31,19.172,19.166,15.62]
[1693678963400,15.65,19.171,19.165,113.31]
[1693678970202,113.31,19.172,19.166,15.63]
[1693678971207,15.65,19.171,19.165,113.31]
[1693678972007,113.31,19.171,19.164,113.31]
[1693678975606,113.31,19.174,19.167,113.31]
[1693678977512,113.31,19.174,19.168,15.63]
[1693678980109,139.38289,19.177,19.17,113.31]
[1693678982015,113.31,19.179,19.172,113.31]
[1693678982216,0.45454546,19.178,19.172,113.31]
[1693678984012,15.65,19.177,19.165,134.3571]
[1693678984213,113.31,19.173,19.166,15.63]
[1693678984715,0.45454546,19.183,19.166,15.63]
[1693678984716,113.31,19.171,19.166,15.63]
[1693678985217,113.31,19.171,19.165,21.0471]
[1693678985611,113.31,19.167,19.165,21.0471]
[1693678985813,113.31,19.167,19.162,15.63]
[1693678989516,113.31,19.167,19.161,32.23933177]
[1693678990322,113.31,19.167,19.162,15.63]
[1693678990920,113.31,19.171,19.163,113.31]
[1693678992023,113.31,19.17,19.162,128.94]
[1693678999126,113.31,19.173,19.166,113.31]
[1693679008940,113.31,19.175,19.168,113.31]
[1693679010030,113.31,19.178,19.171,113.31]
[1693679012035,113.31,19.18,19.174,15.63]
[1693679016745,113.31,19.184,19.176,113.31]
[1693679017442,113.31,19.187,19.181,15.63]
[1693679021351,113.31,19.19,19.184,15.63]
[1693679021953,113.31,19.189,19.182,113.31]
[1693679030655,113.31,19.186,19.179,113.31]
[1693679036764,113.31,19.188,19.181,113.31]
[1693679040870,113.31,19.19,19.183,113.31]
[1693679042266,113.31,19.19,19.184,15.61]
[1693679045169,113.31,19.19,19.186,15.61]
[1693679045371,0.70887553,19.189,19.186,15.61]
[1693679052072,0.70887553,19.189,19.186,128.92]
[1693679053068,113.31,19.2,19.189,15.61]
[1693679053267,113.31,19.2,19.193,15.61]
[1693679057981,113.31,19.204,19.196,113.31]
[1693679059278,113.31,19.204,19.197,15.6]
[1693679062079,15.63,19.204,19.197,113.31]
[1693679064180,113.31,19.205,19.197,113.31]
[1693679064379,15.63,19.206,19.2,15.6]
[1693679064584,0.45454546,19.205,19.2,15.6]
[1693679066080,113.31,19.21,19.203,15.6]
[1693679066277,150.8059,19.213,19.204,113.31]
[1693679066484,191.42641014,19.213,19.204,113.31]
[1693679066686,169.56051014,19.213,19.204,113.31]
[1693679067180,128.94,19.213,19.204,113.31]
[1693679067987,113.31,19.213,19.204,113.31]
[1693679068181,113.76454546,19.215,19.209,15.6]
[1693679068387,113.31,19.215,19.208,15.6]
[1693679068783,15.63,19.214,19.208,15.6]
[1693679069887,16.08454546,19.217,19.21,113.31]
[1693679070088,0.45454546,19.216,19.21,113.31]
[1693679073193,0.45454546,19.216,19.211,15.6]
[1693679073393,0.45454546,19.216,19.211,113.31]
[1693679073692,0.45454546,19.215,19.211,113.31]
[1693679073892,0.45454546,19.216,19.211,113.31]
[1693679078890,113.76454546,19.216,19.208,113.31]
[1693679079093,113.31,19.216,19.208,113.31]
[1693679081794,0.45454546,19.217,19.21,113.31]
[1693679081996,0.45454546,19.217,19.212,113.31]
[1693679082296,0.45454546,19.216,19.212,113.31]
[1693679082491,0.45454546,19.217,19.213,113.31]
[1693679082699,10.02042662,19.217,19.213,113.31]
[1693679082894,0.45454546,19.216,19.213,113.31]
[1693679083096,15.63,19.219,19.213,113.31]
[1693679083297,10.02044247,19.218,19.213,113.31]
[1693679083600,0.45454546,19.217,19.213,113.31]
[1693679083794,15.63,19.219,19.213,113.31]
[1693679083996,10.02044251,19.218,19.213,113.31]
[1693679084300,10.02044251,19.217,19.213,113.31]
[1693679084501,15.61,19.223,19.216,113.31]
[1693679084997,15.61,19.221,19.216,113.31]
[1693679085191,41.6205,19.223,19.216,113.31]
[1693679085394,15.61,19.221,19.216,113.31]
[1693679085595,41.6205,19.223,19.216,113.31]
[1693679085791,15.61,19.221,19.216,113.31]
[1693679086000,41.6205,19.223,19.216,113.31]
[1693679086203,15.61,19.221,19.216,113.31]
[1693679086498,41.6205,19.223,19.216,113.31]
[1693679086699,15.61,19.221,19.216,113.31]
[1693679086900,41.6205,19.223,19.216,113.31]
[1693679087093,15.61,19.221,19.216,113.31]
[1693679087292,41.6205,19.223,19.216,113.31]
[1693679087502,15.61,19.221,19.216,113.31]
[1693679087702,26.0105,19.223,19.216,113.31]
[1693679087703,41.6205,19.223,19.216,113.31]
[1693679087904,15.61,19.221,19.216,113.31]
[1693679088101,41.6205,19.223,19.216,113.31]
[1693679088302,15.61,19.221,19.216,113.31]
[1693679088503,26.0105,19.223,19.216,113.31]
[1693679088804,9.56337798,19.222,19.216,113.31]
[1693679090104,26.0105,19.223,19.216,113.31]
[1693679090300,9.56321646,19.222,19.216,113.31]
[1693679095912,113.31,19.221,19.213,113.31]
[1693679099308,26.01456,19.22,19.213,113.31]
[1693679101717,26.01456,19.22,19.216,113.31]
[1693679103012,113.31,19.223,19.216,113.31]
[1693679105316,26.01186,19.222,19.216,113.31]
[1693679105819,113.31,19.22,19.212,113.31]
[1693679111923,113.31,19.22,19.206,63.74447002]
[1693679111924,139.32186,19.222,19.214,113.31]
[1693679114027,113.31,19.222,19.214,113.31]
[1693679115429,113.31,19.224,19.217,113.31]
[1693679121931,113.31,19.225,19.218,113.31]
[1693679123328,113.31,19.227,19.22,113.31]
[1693679126136,113.31,19.231,19.223,113.31]
[1693679126841,113.31,19.234,19.226,113.31]
[1693679131243,113.31,19.237,19.231,113.31]
[1693679132939,113.31,19.242,19.235,113.31]
[1693679133442,15.6,19.241,19.235,113.31]
[1693679134547,113.31,19.242,19.236,15.57]
[1693679134742,15.6,19.242,19.236,113.31]
[1693679135745,113.31,19.243,19.236,113.31]
[1693679135942,113.31,19.247,19.24,113.31]
[1693679136137,15.6,19.245,19.24,113.31]
[1693679136343,113.31,19.247,19.24,113.31]
[1693679136639,15.6,19.245,19.241,113.31]
[1693679136848,9.55331166,19.244,19.241,113.31]
[1693679137151,15.6,19.245,19.238,113.31]
[1693679137345,9.55334644,19.244,19.236,125.0]
[1693679137647,41.57807,19.247,19.236,125.0]
[1693679137848,15.6,19.245,19.236,125.0]
[1693679138048,9.55336542,19.244,19.236,125.0]
[1693679138245,41.57807,19.247,19.236,125.0]
[1693679138443,15.6,19.245,19.236,125.0]
[1693679138641,35.53540753,19.244,19.236,125.0]
[1693679138841,25.98212,19.244,19.236,125.0]
[1693679141951,25.98212,19.244,19.235,125.0]
[1693679150861,15.6,19.242,19.235,125.0]
[1693679151058,25.98212,19.244,19.235,125.0]
[1693679151260,15.6,19.242,19.235,125.0]
[1693679151559,25.98212,19.244,19.235,125.0]
[1693679151760,15.6,19.242,19.235,125.0]
[1693679151956,25.98212,19.244,19.233,125.0]
[1693679152161,15.6,19.242,19.233,125.0]
[1693679152358,25.98212,19.244,19.233,125.0]
[1693679152960,15.6,19.242,19.233,125.0]
[1693679153158,25.98212,19.244,19.233,125.0]
[1693679153459,15.6,19.242,19.233,125.0]
[1693679153659,25.98212,19.244,19.233,125.0]
[1693679153856,15.6,19.242,19.233,125.0]
[1693679154058,15.6,19.242,19.225,520.6844]
[1693679154059,125.0,19.242,19.23,125.0]
[1693679154258,15.6,19.237,19.226,125.0]
[1693679154460,16.05454546,19.237,19.226,125.0]
[1693679154858,16.05454546,19.237,19.227,15.57]
[1693679157356,15.6,19.235,19.228,112.62]
[1693679160759,15.6,19.235,19.223,21.6193]
[1693679160957,15.6,19.232,19.226,112.62]
[1693679161563,56.88898128,19.235,19.229,112.62]
[1693679163970,112.62,19.236,19.23,15.58]
[1693679164171,0.45454546,19.238,19.232,112.62]
[1693679165372,112.62,19.237,19.23,112.62]
[1693679169469,112.62,19.234,19.227,112.62]
[1693679171973,112.62,19.235,19.228,112.62]
[1693679172871,112.62,19.238,19.232,15.58]
[1693679181980,128.22,19.239,19.232,112.62]
[1693679186985,112.62,19.239,19.232,112.62]
[1693679188075,112.62,19.239,19.227,15.58]
[1693679188076,112.62,19.237,19.229,112.62]
[1693679189275,15.6,19.232,19.226,133.7564]
[1693679189476,15.6,19.232,19.226,112.62]
[1693679190878,15.6,19.229,19.223,112.62]
[1693679191788,112.62,19.23,19.223,112.62]
[1693679192085,112.62,19.232,19.225,112.62]
[1693679195389,112.62,19.231,19.224,112.62]
[1693679201197,112.62,19.231,19.225,15.58]
[1693679205195,112.62,19.229,19.222,112.62]
[1693679206994,41.82631304,19.234,19.206,15.58]
[1693679206995,15.6,19.222,19.206,15.58]
[1693679207193,15.6,19.218,19.211,15.58]
[1693679207699,112.62,19.215,19.208,112.62]
[1693679208687,112.62,19.213,19.206,21.5555]
[1693679208892,112.62,19.213,19.205,112.62]
[1693679209591,112.62,19.215,19.208,112.62]
[1693679209794,20.8394,19.223,19.205,500.0]
[1693679209795,112.62,19.218,19.211,112.62]
[1693679212093,112.62,19.222,19.216,15.58]
[1693679212298,125.27,19.224,19.212,125.27]
[1693679212496,125.27,19.224,19.213,20.8709]
[1693679213093,125.27,19.224,19.212,125.27]
[1693679217304,125.27,19.227,19.216,15.58]
[1693679220002,15.6,19.245,19.216,15.58]
[1693679220202,125.27,19.233,19.221,125.27]
[1693679220806,15.6,19.232,19.221,125.27]
[1693679221009,41.33194588,19.236,19.218,15.58]
[1693679221010,15.6,19.229,19.218,140.85]
[1693679222803,15.6,19.229,19.218,125.27]
[1693679231910,25.99833,19.232,19.216,79.0803952]
[1693679231911,15.61,19.225,19.216,79.0803952]
[1693679232117,15.61,19.225,19.215,15.58]
[1693679232419,112.77,19.22,19.213,112.77]
[1693679237319,125.31,19.223,19.211,125.31]
[1693679237518,26.01186,19.222,19.211,125.31]
[1693679242820,125.31,19.22,19.208,154.83824121]
[1693679243723,151.32456,19.22,19.208,154.83824121]
[1693679247124,26.01456,19.22,19.211,125.31]
[1693679248429,125.31,19.222,19.211,125.31]
[1693679253429,125.31,19.221,19.21,15.59]
[1693679253823,15.61,19.22,19.21,15.59]
[1693679254127,41.62456,19.22,19.21,15.59]
[1693679255626,125.31,19.218,19.207,21.5146]
[1693679255825,151.32727,19.218,19.207,21.5146]
[1693679256426,15.61,19.213,19.207,21.5146]
[1693679257234,0.45454546,19.217,19.198,15.59]
[1693679257436,0.45454546,19.217,19.204,15.59]
[1693679257632,112.9,19.209,19.203,21.451]
[1693679258028,112.9,19.209,19.202,15.59]
[1693679260328,15.61,19.208,19.202,15.59]
[1693679260534,112.9,19.206,19.198,128.49]
[1693679260737,112.9,19.206,19.199,3.97969107]
[1693679261150,112.9,19.206,19.198,128.49]
[1693679262037,112.9,19.205,19.198,15.59]
[1693679262343,16.06454546,19.215,19.196,21.451]
[1693679262344,125.49,19.207,19.196,21.451]
[1693679262539,125.49,19.207,19.198,15.59]
[1693679262540,15.61,19.206,19.198,15.59]
[1693679262745,15.61,19.206,19.196,21.451]
[1693679262946,15.61,19.206,19.198,15.59]
[1693679263244,15.61,19.206,19.196,21.451]
[1693679264243,15.61,19.206,19.195,125.49]
[1693679264440,15.61,19.202,19.194,15.59]
[1693679265247,15.61,19.202,19.193,15.65297298]
[1693679265551,15.61,19.198,19.193,15.65297298]
[1693679266841,125.49,19.199,19.194,15.59]
[1693679267847,125.49,19.199,19.193,15.59]
[1693679268851,125.49,19.199,19.193,15.65297298]
[1693679269052,125.49,19.203,19.193,15.65297298]
[1693679276049,15.61,19.202,19.193,0.06297298]
[1693679276346,15.61,19.193,19.181,37.3511]
[1693679276551,125.49,19.191,19.181,21.7611]
[1693679276946,125.49,19.191,19.179,15.59]
[1693679277148,125.49,19.191,19.18,3.98717231]
[1693679277747,125.49,19.191,19.179,15.59]
[1693679278247,15.61,19.19,19.179,15.59]
[1693679278447,125.49,19.187,19.18,3.98707805]
[1693679278645,125.49,19.187,19.176,15.59]
[1693679278857,125.49,19.187,19.177,3.98723218]
[1693679283253,15.64,19.186,19.177,3.98723218]
[1693679283553,0.45454546,19.185,19.177,3.98723218]
[1693679283748,0.45454546,19.185,19.176,15.59]
[1693679283749,125.49,19.183,19.174,15.62]
[1693679284657,15.64,19.182,19.174,15.62]
[1693679286955,125.49,19.183,19.174,15.62]
[1693679288159,15.64,19.182,19.174,15.62]
[1693679291660,125.49,19.183,19.174,15.62]
[1693679292866,125.49,19.183,19.174,500.0]
[1693679293067,125.49,19.188,19.176,125.49]
[1693679299163,125.49,19.188,19.176,166.14833332]
[1693679299370,125.49,19.188,19.177,20.4094]
[1693679301970,125.49,19.188,19.177,145.8994]
[1693679312076,0.45454546,19.195,19.177,145.8994]
[1693679312077,125.49,19.19,19.177,145.8994]
[1693679312273,113.13,19.187,19.181,113.13]
[1693679314583,113.13,19.19,19.184,15.61]
[1693679318572,0.45454546,19.194,19.177,133.5394]
[1693679318778,0.45454546,19.194,19.174,113.13]
[1693679318779,113.13,19.182,19.174,113.13]
[1693679318983,113.13,19.178,19.172,15.61]
[1693679321683,113.13,19.185,19.177,113.13]
[1693679322085,113.13,19.186,19.179,113.13]
[1693679322380,125.72,19.189,19.176,125.72]
[1693679322884,125.72,19.189,19.174,500.0]
[1693679322885,15.63,19.184,19.174,500.0]
[1693679325786,15.63,19.184,19.175,3.99127389]
[1693679330687,125.72,19.185,19.175,3.99127389]
[1693679331182,15.63,19.184,19.175,3.99127389]
[1693679332084,151.77659,19.189,19.175,3.99127389]
[1693679333581,151.77659,19.189,19.175,98.8054315]
[1693679333785,151.77659,19.189,19.176,3.99127389]
[1693679334290,151.77659,19.189,19.177,3.99127389]
[1693679334490,151.77659,19.189,19.176,3.99127389]
[1693679334686,151.77659,19.189,19.177,3.99127389]
[1693679334882,151.77659,19.189,19.179,15.61]
[1693679335084,151.77659,19.189,19.175,42.1552892]
[1693679335284,151.77659,19.189,19.176,3.98935675]
[1693679335489,151.77659,19.189,19.177,3.98935675]
[1693679335793,151.77659,19.189,19.178,3.98935675]
[1693679336091,151.77659,19.189,19.175,94.82565653]
[1693679336292,151.77659,19.189,19.176,3.98937811]
[1693679343203,125.72,19.186,19.176,3.98937811]
[1693679344999,26.05659,19.189,19.177,125.72]
[1693679345000,151.77659,19.189,19.177,125.72]
[1693679345199,151.77659,19.189,19.179,15.62]
[1693679345404,151.77659,19.189,19.177,125.72]
[1693679345601,125.72,19.189,19.179,15.62]
[1693679345808,125.72,19.189,19.177,220.54565653]
[1693679346012,125.72,19.189,19.179,15.62]
[1693679346309,125.72,19.189,19.177,220.54565653]
[1693679346512,125.72,19.189,19.179,15.62]
[1693679346712,125.72,19.189,19.177,220.54565653]
[1693679346901,125.72,19.189,19.179,15.62]
[1693679347102,125.72,19.189,19.177,220.54565653]
[1693679347303,113.13,19.187,19.18,113.13]
[1693679348213,113.13,19.187,19.18,207.95565653]
[1693679348411,113.13,19.187,19.18,113.13]
[1693679352014,113.13,19.188,19.181,113.13]
[1693679354210,113.13,19.186,19.179,15.62]
[1693679356618,113.13,19.186,19.178,207.96075561]
[1693679358808,113.13,19.186,19.179,15.62]
[1693679360022,113.13,19.186,19.178,207.96075561]
[1693679361026,113.13,19.186,19.179,3.98894096]
[1693679361518,113.13,19.186,19.179,19.60894096]
[1693679361724,113.13,19.186,19.179,15.62]
[1693679361923,113.13,19.186,19.179,128.75]
[1693679363824,113.13,19.189,19.182,113.13]
[1693679369221,113.13,19.189,19.179,15.62]
[1693679369422,113.13,19.189,19.182,113.13]
[1693679375025,113.13,19.189,19.177,41.30484626]
[1693679375026,113.13,19.193,19.186,113.13]
[1693679376120,113.13,19.195,19.188,15.61]
[1693679378429,113.13,19.197,19.191,15.61]
[1693679378628,15.64,19.199,19.192,113.13]
[1693679381026,113.13,19.2,19.193,15.61]